Cogmind - Beta 16 @@@ ROGUE MODE // 2025.12.23 @ 02:06:04 Player: Peregrine Result: Destroyed by as-11498 with Assembled Blade Performance ------------- Evolutions (0) 0 Regions Visited (3) 600 Robots Destroyed (17) 85 Value Destroyed (367) 367 Prototype IDs (25) 500 Alien Tech Used (0) 0 Bonus (207) 207 TOTAL SCORE: 1759 Bonus ------- Aligned with FarCom 300 Friendly Fire -93 Cogmind --------- Core Integrity 0/250 Matter 228/300 Energy 35/100 System Corruption 0% Temperature Critical (662) Movement Core (200) Ox3 Location -10/Exiles Parts ------- > --- POWER (1) -------- (None) > --- PROPULSION (2) --- (None) > --- UTILITY (2) ------ Medium Storage Unit > --- WEAPON (2) ------- (None) > --- INVENTORY (10) --- Ion Engine Light Ion Engine Wheel Wheel Wheel Core Shielding Medium Laser Small Laser Peak State ------------ > --- POWER ------------ Light Nuclear Core > --- PROPULSION ------- Aluminum Leg Aluminum Leg > --- UTILITY ---------- Medium Storage Unit Weapon Shielding > --- WEAPON ----------- Firepult > --- INVENTORY -------- Ion Engine Light Ion Engine Wheel Wheel Wheel Core Shielding Medium Laser Small Laser [Rating: 27] Favorites ----------- Power Light Nuclear Core Engine Ion Engine Power Core Light Nuclear Core Propulsion Aluminum Leg Leg Aluminum Leg Utility Medium Storage Unit Storage Medium Storage Unit Protection Weapon Shielding Weapon Assault Rifle Energy Cannon Beam Cannon Ballistic Gun Assault Rifle Build | -11 -10 -10 -10 ------- Run | Yrd Mat Min Exi Slots Evolved . | . . . . Power . | . . . . Propulsion . | . . . . Utility . | . . . . Weapon . | . . . . Parts Attached 12 | . 5 6 1 Power 2 | . 1 1 . Engine 1 | . 1 . . Core 1 | . . 1 . Reactor . | . . . . Propulsion 4 | . 1 3 . Treads . | . . . . Leg 4 | . 1 3 . Wheel . | . . . . Hover . | . . . . Flight . | . . . . Utility 2 | . 2 . . Device . | . . . . Storage 1 | . 1 . . Processor . | . . . . Hackware . | . . . . Protection 1 | . 1 . . Artifact . | . . . . Weapon 4 | . 1 2 1 Energy Gun . | . . . . Energy Cannon 2 | . . 1 1 Ballistic Gun 2 | . 1 1 . Ballistic Cannon . | . . . . Launcher . | . . . . Special Weapon . | . . . . Impact Weapon . | . . . . Slashing Weapon . | . . . . Piercing Weapon . | . . . . Special Melee Weapon . | . . . . Unidentified Prototypes . | . . . . Parts Lost 6 | . . 1 5 Power 1 | . . . 1 Propulsion 3 | . . 1 2 Utility 1 | . . . 1 Weapon 1 | . . . 1 Highest Loss Streak 5 | . . 1 5 To Critical Strikes . | . . . . Average Backups 7 | . 6 8 8 Power 1 | . 1 2 2 Propulsion 3 | . 4 4 3 Utility . | . . . 1 Weapon 1 | . 1 2 2 Tool/Special . | . . . . Unused Backups 25 | . 13 4 8 Power 3 | . . 2 1 Propulsion 13 | . 8 1 4 Utility 4 | . 2 1 1 Weapon 5 | . 3 . 2 Tool/Special . | . . . . Average Slot Usage (%) 96 | . 89 99 94 Engine 6 | . 14 6 . Core 7 | . . 7 13 Leg 27 | . 28 27 27 Storage 14 | . 14 14 14 Protection 11 | . 4 14 13 Energy Cannon 4 | . . 2 14 Ballistic Gun 22 | . 28 25 10 Peak Build Rating 27 | . 7 10 27 Average Rating 8 | . 6 8 13 On Entrance 7 | 6 6 7 9 Avg Prop Armor Cover (%) . | . . . . Naked Turns . | . . . . Heaviest Build 38 | 11 19 21 38 Greatest Support 20 | 20 20 20 20 Greatest Overweight (x) 1 | . . 1 1 Average Overweight (x) . | . . . . Largest Inventory Capacity 10 | . 10 10 10 Average Capacity 9 | . 8 10 10 Most Carried 10 | . 8 10 10 Average Carried 7 | . 6 8 8 Final Capacity 10 | 8 10 10 10 Final Carried 9 | 6 8 9 8 Class Distribution -------------------- 78% | Scavenger-Mutant 21% | Mutant Dominant Class ---------------- Mutant | -10/Materials Scavenger-Mutant | -10/Mines Scavenger-Mutant | -10/Exiles Resources | -11 -10 -10 -10 ----------- Run | Yrd Mat Min Exi Matter Collected 496 | 200 146 150 . Remotely . | . . . . Salvage Created 542 | . 245 233 64 Parts 32 | . 16 16 . Haulers Intercepted 1 | . 1 . . Recyclers Shooed . | . . . . Parts Field Recycled . | . . . . Retrieved Matter . | . . . . Parts Self-Destructed . | . . . . Prevented . | . . . . Parts Restored . | . . . . Kills | -11 -10 -10 -10 ------- Run | Yrd Mat Min Exi Combat Hostiles Destroyed 18 | . 8 7 3 Guns 15 | . 8 7 . AOE 3 | . . . 3 Classes Destroyed 4 | . 3 . 1 Hauler 1 | . 1 . . Swarmer 8 | . 5 3 . Grunt 7 | . 3 4 . Assembled 3 | . . . 3 Best Kill Streak 5 | . 5 3 4 Combat Bots Only 5 | . 5 3 3 Max Kills in Single Turn 2 | . 2 2 1 Gunslinging 1 | . 1 1 . Exploded 1 | . . . 1 Melee . | . . . . Uniques/NPCs Destroyed 1 | . . . 1 EX-BIN (-10/Exiles) Combat | -11 -10 -10 -10 -------- Run | Yrd Mat Min Exi Hostile Shots Fired 111 | . 43 34 34 Missed 38 | . 18 14 6 Hits 73 | . 25 20 28 Melee 14 | . . . 14 Projectile 59 | . 25 20 14 Critical Strikes 1 | . . . 1 Damage Taken 1205 | . 228 303 674 Core 262 | . 45 62 155 Absorbed by Shields . | . . . . Redirected to Shielding 51 | . 10 10 31 Core Remaining (%) 100 | 100 . . . Volleys Fired 55 | . 24 25 6 Largest 2 | . 2 2 1 Hottest 250 | . 40 40 250 Shots Fired 104 | . 48 50 6 Gun 98 | . 48 50 . Cannon 6 | . . . 6 Launcher . | . . . . Special . | . . . . Kinetic 98 | . 48 50 . Thermal 6 | . . . 6 Explosive . | . . . . Electromagnetic . | . . . . Robot Hit Streak 8 | . 8 8 2 Robot Miss Streak 9 | . 5 2 9 Penetration Max . | . . . . Secondary Targets 4 | . 2 2 . Max Gunslinging Chain 1 | . 1 1 . Shots Hit Robots 66 | . 28 34 4 Core Hits 41 | . 13 16 12 Critical Kills . | . . . . Critical Parts Destroyed 1 | . . 1 . Critical Strikes 1 | . . 1 . Destroy 1 | . . 1 . Melee Attacks . | . . . . Impact . | . . . . Slashing . | . . . . Piercing . | . . . . Sneak Attacks . | . . . . Combat Hostiles . | . . . . Follow-up Attacks . | . . . . Damage Inflicted 967 | . 287 364 316 Guns 649 | . 287 362 . Cannons 44 | . . . 44 Explosions 272 | . . . 272 Melee . | . . . . Ramming 2 | . . 2 . Kinetic 649 | . 287 362 . Thermal 316 | . . . 316 Explosive . | . . . . Electromagnetic . | . . . . Impact . | . . . . Slashing . | . . . . Piercing . | . . . . Highest Corruption . | . . . . Average Corruption . | . . . . Corruption Purged . | . . . . Corruption Blocked . | . . . . Overload Shots . | . . . . Overflow Damage . | . . . . Projectiles . | . . . . Explosions . | . . . . Melee . | . . . . Knockbacks . | . . . . Impact . | . . . . Kinetic . | . . . . Secondary . | . . . . Self-Inflicted Damage 20 | . . . 20 Shots 1 | . . . 1 Rammed . | . . . . Targets Rammed 2 | . . 2 . Kicked 2 | . . 2 . Crushed . | . . . . Highest Temperature 814 | . 12 15 814 Average Temperature 235 | . 6 6 496 Received Heat Transfer 156 | . 60 96 . Effects 12 | . . . 12 Shutdowns 3 | . . . 3 Energy Bleed 2 | . . . 2 Interference 2 | . . . 2 Matter Decay 2 | . . . 2 Short Circuit 1 | . . . 1 Damage (major) 2 | . . . 2 Siege Activations . | . . . . Martial Activations . | . . . . Shielding Activations . | . . . . Robots Disrupted . | . . . . Combat Hostiles . | . . . . Robots Corrupted . | . . . . Combat Hostiles . | . . . . Parts Fried . | . . . . Impact Corruptions . | . . . . Robots Melted 1 | . . . 1 Combat Hostiles . | . . . . Parts Melted 11 | . . . 11 Heat Transferred 2080 | . . . 2080 Parts Sabotaged . | . . . . Parts Stolen . | . . . . Parts Stripped . | . . . . Power Chain Reactions . | . . . . Alert | -11 -10 -10 -10 ------- Run | Yrd Mat Min Exi Maximum Alert Level . | . . . . Low Security (%) 100 | . 100 100 . Level 1 . | . . . . Level 2 . | . . . . Level 3 . | . . . . Level 4 . | . . . . Level 5 . | . . . . High Security . | . . . . Max Security . | . . . . Peak Influence 152 | . 152 70 . Initial 47 | . . 47 . Average 25 | . 46 16 . Influence Increases 447 | . 262 185 . Destroy 0b10 Robot/C 300 | . 160 140 . Destroy 0b10 Robot/NC 5 | . 5 . . Destroy Leader 62 | . 32 30 . Successful Hack 5 | . 5 . . Disable Machine 30 | . 15 15 . Lose Combat Pursuer 45 | . 45 . . Influence Decreases 447 | . 140 307 . Entered New Map 75 | . . 75 . Time Decay 362 | . 140 222 . Lost Part 10 | . . 10 . Squads Dispatched 1 | . 1 . . Investigation 1 | . 1 . . Extermination . | . . . . Reinforcement . | . . . . Assault . | . . . . Garrison . | . . . . Intercept . | . . . . Searches Triggered . | . . . . Construction Impeded . | . . . . Haulers Reinforced . | . . . . Active Scanning Responses . | . . . . Cargo Convoy Interrupts . | . . . . Stealth | -11 -10 -10 -10 --------- Run | Yrd Mat Min Exi Distress Signals 3 | . 3 . . Communications Jammed . | . . . . Distress Signals . | . . . . Times Spotted 28 | . 14 7 7 Peak Tracking Total 9 | . 5 3 9 Tactical Retreats 2 | . 2 . . Traps | -11 -10 -10 -10 ------- Run | Yrd Mat Min Exi Traps Triggered . | . . . . Indirectly . | . . . . Trap Hack Attempts . | . . . . Triggered . | . . . . Disarmed . | . . . . Reprogrammed . | . . . . Reused . | . . . . Traps Extracted . | . . . . Installed . | . . . . Triggered . | . . . . Machines | -11 -10 -10 -10 ---------- Run | Yrd Mat Min Exi Machines Disabled 7 | . 1 1 5 Max in Single Turn 2 | . 1 1 2 Machines Repaired . | . . . . Machines Dismantled . | . . . . Machines Sabotaged . | . . . . Overloaded Fab Kills . | . . . . Hacking | -11 -10 -10 -10 --------- Run | Yrd Mat Min Exi Machines Accessed 5 | . 3 1 1 Terminals 3 | . 3 . . Fabricators . | . . . . Repair Stations . | . . . . Recycling Units . | . . . . Scanalyzers . | . . . . Garrison Access . | . . . . Total Hacks 10 | . 8 1 1 Successful 5 | . 3 1 1 Failed 5 | . 5 . . Catastrophic 1 | . 1 . . Database Lockouts . | . . . . Manual 5 | . 4 . 1 Terminals 8 | . 8 . . Fabricators . | . . . . Repair Stations . | . . . . Recycling Units . | . . . . Scanalyzers . | . . . . Garrison Access . | . . . . Terminal Hacks 4 | . 2 1 1 Prototype ID Bank 1 | . 1 . . Open Door 1 | . . 1 . Locate Traps 1 | . 1 . . Proto ID Catalog 1 | . . . 1 Fabricator Hacks . | . . . . Repair Station Hacks . | . . . . Recycling Unit Hacks . | . . . . Scanalyzer . | . . . . Garrison Access Hacks . | . . . . Unauthorized Hacks 1 | . 1 . . Terminals 1 | . 1 . . Botnet 1 | . 1 . . Fabricators . | . . . . Repair Stations . | . . . . Recycling Units . | . . . . Scanalyzers . | . . . . Garrison Access . | . . . . Data Cores Recovered . | . . . . Used . | . . . . Hacking Detections 3 | . 3 . . Full Trace Events 1 | . 1 . . Feedback Events . | . . . . Feedback Blocked . | . . . . Robot Schematics Acquired . | . . . . Robots Built . | . . . . Authchips . | . . . . Time . | . . . . Total Robot Build Rating . | . . . . Part Schematics Acquired . | . . . . Parts Built . | . . . . Authchips . | . . . . Time . | . . . . Total Part Build Rating . | . . . . Part Studies Acquired . | . . . . Parts Repaired . | . . . . Time . | . . . . Parts Recycled . | . . . . Recycled Matter . | . . . . Retrieved Matter . | . . . . Retrieved Components . | . . . . Parts Scanalyzed . | . . . . Part Schematics Acquired . | . . . . Parts Damaged . | . . . . Bothacking | -11 -10 -10 -10 ------------ Run | Yrd Mat Min Exi Used RIF Installer . | . . . . Robots Hacked . | . . . . Non-combat . | . . . . Combat . | . . . . Robot Hacks Applied . | . . . . Relay Couplers Released . | . . . . Fabnet Peak Effective % . | . . . . Robots Rewired . | . . . . Allies Hacked . | . . . . Hacks Repelled . | . . . . Allies | -11 -10 -10 -10 -------- Run | Yrd Mat Min Exi Total Allies . | . . . . Largest Group . | . . . . Highest-Rated Group . | . . . . Highest-Rated Ally . | . . . . Total Orders . | . . . . Ally Attacks . | . . . . Total Damage . | . . . . Kills . | . . . . Allies Corrupted . | . . . . Allies Melted . | . . . . Intel | -11 -10 -10 -10 ------- Run | Yrd Mat Min Exi Active Infowar (turns) . | . . . . Robot Analysis Total . | . . . . Derelict Logs Recovered 1 | . . 1 . Drone Launches . | . . . . Drone Recoveries . | . . . . Exploration | -11 -10 -10 -10 ------------- Run | Yrd Mat Min Exi Turns Passed 1580 | . 365 894 321 Spaces Moved 888 | 1 196 541 150 Core . | . . . . Treads . | . . . . Legs 888 | 1 196 541 150 Wheels . | . . . . Hover . | . . . . Flight . | . . . . Fastest Speed 120 | 120 120 120 120 Average Speed 138 | 120 120 130 189 Slowest Speed 190 | 120 120 190 190 Overloaded Moves . | . . . . Propulsion Burnouts . | . . . . Robots Hopped . | . . . . Potential Cave-ins . | . . . . Cave-ins Triggered . | . . . . Exploration Rate (%) 41 | 2 32 90 40 Regions Visited 3 Branch Regions 2 Pre-discovered Areas 1 | . . 1 . Known Exits Taken . | . . . . Unknown Exits Taken 3 | 1 1 1 . Scrap Searched 2 | . . 2 . Spaces Dug . | . . . . Terrain Destroyed 12 | . . . 12 Melee . | . . . . Projectile . | . . . . AOE 12 | . . . 12 Terrain Rammed . | . . . . Walls Destroyed . | . . . . Machines Disabled . | . . . . Actions | -11 -10 -10 -10 --------- Run | Yrd Mat Min Exi Total 1151 | . 286 682 183 Wait 157 | . 41 94 22 Move 885 | . 195 540 150 Hop . | . . . . Pick Up 21 | . 12 8 1 Fast Attach 1 | . . 1 . Attach 4 | . 2 1 1 Detach . | . . . . Swap 7 | . 3 4 . Drop 19 | . 9 7 3 Fire 55 | . 24 25 6 Melee . | . . . . Ram . | . . . . Kick 2 | . . 2 . Crush . | . . . . Escape Stasis . | . . . . Rewire . | . . . . Trap . | . . . . Miscellaneous . | . . . . Route ------- -11/Scrapyard -10/Materials -10/Mines (discovered 2 exits: [*Mat] / *Exi) -10/Exiles (discovered 2 exits: Min x2) History --------- Turn | Location | Event 1 | -11/Scrapyard | Discovered new exit (range 0) 1 | -11/Scrapyard | Entered Materials 124 | -10/Materials | Discovered new exit (range 14) 313 | -10/Materials | Build established: Mutant 366 | -10/Materials | Entered Mines 367 | -10/Mines | Learned location of Storage (-9) 445 | -10/Mines | Received a Rocket Launcher from a helpful Derelict 527 | -10/Mines | Met a Derelict who couldn't figure out how to use a Trap Extractor 625 | -10/Mines | Build established: Scavenger-Mutant 720 | -10/Mines | Discovered new exit (range 8) 1250 | -10/Mines | Deemed a non-threat by the Exiles lab entrance 1250 | -10/Mines | Discovered new exit (range 5) 1260 | -10/Mines | Entered Exiles 1261 | -10/Exiles | Identified exit to Mines 1312 | -10/Exiles | Met 8R-AWN 1342 | -10/Exiles | Met EX-HEX 1399 | -10/Exiles | Met EX-BIN 1437 | -10/Exiles | Aligned with FarCom system 1439 | -10/Exiles | Given EX-Vault access code 1485 | -10/Exiles | Opened EX-Vault 1496 | -10/Exiles | Found Firepult 1532 | -10/Exiles | Warned to stay clear of 0b10 Research branches 1547 | -10/Exiles | Attacked by the Exiles 1548 | -10/Exiles | Destroyed EX-BIN 1573 | -10/Exiles | Core integrity fell below 50% 1580 | -10/Exiles | Core integrity fell below 20% 1581 | -10/Exiles | Destroyed by as-11498 with Assembled Blade Last Messages --------------- 01564_ as-78784 destroyed. 01566_ as-74777 destroyed. 01568_ Overheating: Matter decay (-60). 01571_ Power failure, Lgt. Nuclear Core shutdown. 01571_ Overheating: Energy bleed (-11). 01571_ Weapon Shielding destroyed. 01572_ Overheating: System interference. 01572_ Firepult temporarily disabled. 01573_ Aluminum Leg destroyed. 01574_ Overheating: Lgt. Nuclear Core damaged (-7). 01576_ Overheating: Energy bleed (-9). 01576_ Broken Aluminum Leg destroyed. 01577_ Power failure, Lgt. Nuclear Core shutdown. 01577_ Lgt. Nuclear Core destroyed. 01578_ Overheating: Matter decay (-24). 01580_ as-69750 destroyed. 01580_ BIN's Terminal disabled. 01581_ Overheating: System interference. 01581_ Firepult temporarily disabled. 01581_ Firepult destroyed. Map ----- +----------------------------------------------------+ | ??????????????????# [ #??????????????????????? | | ??????????????????# =!#??????????????????????? | | ??????????????????## ##??????????????????????? | | ??????????????????#X #???????????????????????? | | ??????????????????## #???????????????????????? | | ???????????????????# #???????????????????????? | | ???????????????????# #???###?????????????????? | | ???????????????????# #??"""""????????????????? | | ???????????????????# ## """????????????????? | | ???????????????????# X""????????????????? | | ???????????????????# ## """????????????????? | | ????????????#####??# #??"""""????????????????? | | ????????????""""""?# #???###?????????????????? | | ????????????"""" ## #???????????????????????? | | ???????????#""X" #???????????????????????? | | ???????????#" #???????????????????????? | | ???????????#" ## #???????????????????????? | | ???????????#""""""?# #?#########?????????????? | | ???????????##"###??# #?#"""""""#?????????????? | | ???????????? ??????# #?#"""""""#?????????????? | | ???????????????????# #?#"""""""#?????????????? | | ??????????????????## ### " #?????????????? | | ??????????????????#" #?????????????? | | ??????????????????#" #?????????????? | | ??????????????????#" "#?????????????? | | ??????????????????#" a@ "#?????????????? | | ??????????????????#" a% % "#?????????????? | | ??????????????????#" ##????????????? | | ??????????????????## ""????????????? | | ???????????????????# ##????????????? | | ???????????????????#" ""????????????? | | ???????????????????# % # ????????????? | | ???????????????????# % #?????????????? | | ??????????????????## #######?????????????? | | ?????????????????## #???????????????????? | | ???????????????### a #???????????????????? | | ??????????????"""" a#####???????????????????? | | ?????????????"" " ##???###########???????? | | ????????????""" #####"""""""""##??????? | | ??????????? " " """ """"##?????? | | ????????? "" " #?????? | | ????????? " """#?????? | | ????????? " "#?????? | | ?????????? " "##????? | | ?????????? ""###??? | | ?????????? """""" """#??? | | ??????????? ######""" "#??? | | ??????????? ""#?????#####""" ##?? | | ?????????????"???????????##""" ##? | | ??????????????????????????#"""" ## | +----------------------------------------------------+ Best States ------------- Heat Dissipation 25 Energy Generation 14 Energy Capacity 250 Matter Stores 300 Matter Capacity 300 Sight Range 16 Terrain Scan Density 10 Weapon Shielding 33 Evasion (%) 55 Item Schematics ----------------- None Robot Schematics ------------------ None Fabricated ------------ Nothing Repaired ---------- Nothing Studied --------- None Alien Tech Used ----------------- None Achievements -------------- Sixth Sense Challenges ------------ None Game ------ Seed ImpactSkeletonCanceller Manual? 0 Play Time 00:11:12 Cumulative 140.1 hours Start 2025.12.23 @ 01:47:59 End 2025.12.23 @ 02:06:04 Sessions 1 Manual Loads 0 Difficulty Rogue Special Mode None Game No. 171 Rogue 156 Adventurer 15 Explorer 0 Win Type - Total 6 Types 3/0/2/0/0/0/1/0/0/0 Lore% 43 Gallery% 66 Achievement% 39 Wizard Run 0 Options --------- Layout 0 ASCII 0 Keyboard 0 Movement Mouse Keybinds 0 Fullscreen 2 Font 36/Smallcaps Map View 76x50 Zoom Use 0% Tactical HUD 1 Map Filters NONE Filters NONE Steam 1 RUN: 677a2dfd-2678-41a4-8bec-f10589e1a653